bitfinex/quotes_SOLUSD_20250724
["timestamp","ask_amount","ask_price","bid_price","bid_amount"]
[1753358187836,0.03,186.9,186.89,0.68]
[1753358188443,0.03,186.9,186.89,8.24159708]
[1753358189345,0.03,186.9,186.86,9.75889708]
[1753358189725,7.59159708,186.9,186.87,0.68]
[1753358190760,7.56159708,186.88,186.84,38.62]
[1753358190932,0.03,186.86,186.85,0.68]
[1753358192049,7.59159708,186.86,186.84,38.62]
[1753358192270,0.03,186.86,186.84,38.62]
[1753358192633,0.03,186.86,186.85,0.68]
[1753358192835,0.03,186.86,186.84,39.3]
[1753358193233,0.03,186.86,186.84,38.62]
[1753358193646,0.03,186.86,186.85,0.68]
[1753358193848,0.03,186.86,186.85,25.84579284]
[1753358194059,0.03,186.86,186.85,25.31060419]
[1753358194366,0.03,186.86,186.85,17.46468397]
[1753358194658,0.03,186.86,186.84,38.62]
[1753358195162,0.03,186.86,186.84,39.3]
[1753358195846,7.56159708,186.85,186.8,0.74]
[1753358196172,7.56159708,186.83,186.81,16.78468397]
[1753358196332,7.56159708,186.84,186.82,0.68]
[1753358196652,7.56159708,186.85,186.82,0.68]
[1753358196852,7.56159708,186.84,186.82,0.68]
[1753358197232,7.56159708,186.84,186.83,0.68]
[1753358197633,0.03,186.86,186.84,16.78468397]
[1753358197939,0.03,186.86,186.85,30.51767938]
[1753358198449,0.03,186.86,186.85,31.19767938]
[1753358198849,0.03,186.9,186.89,42.78468397]
[1753358199039,0.03,186.94,186.9,0.28432314]
[1753358199242,0.03,186.94,186.93,0.28432314]
[1753358199546,0.03,186.94,186.93,39.57928275]
[1753358199750,0.03,186.94,186.93,40.28928275]
[1753358199935,0.03,186.94,186.93,47.85087983]
[1753358200449,0.03,186.94,186.93,40.28928275]
[1753358200650,0.03,186.94,186.93,47.85087983]
[1753358200859,0.03,186.94,186.93,40.28928275]
[1753358201333,0.03,186.94,186.93,47.85087983]
[1753358201528,0.03,186.94,186.93,64.6355638]
[1753358201756,0.03,186.94,186.93,69.9851599]
[1753358204153,0.03,186.94,186.93,56.36396672]
[1753358204361,0.03,186.94,186.92,38.7]
[1753358204567,0.03,186.94,186.93,16.78468397]
[1753358204772,0.03,186.94,186.93,25.8755638]
[1753358205639,0.03,186.94,186.93,31.2251599]
[1753358208157,0.03,186.94,186.93,25.8755638]
[1753358208542,0.03,186.94,186.93,55.66468397]
[1753358208736,0.03,186.94,186.93,63.22628105]
[1753358208944,0.03,186.94,186.93,63.93628105]
[1753358209257,0.03,186.94,186.93,61.01287246]
[1753358209463,0.03,186.94,186.93,61.83215521]
[1753358210666,0.03,186.94,186.93,67.18175131]
[1753358212247,0.03,186.98,186.97,16.78468397]
[1753358212446,0.03,186.98,186.97,155.41049238]
[1753358212645,0.03,186.98,186.97,155.58564722]
[1753358215750,0.03,186.98,186.97,116.76564722]
[1753358215955,0.03,186.98,186.97,155.54564722]
[1753358228077,0.03,186.98,186.97,155.38564722]
[1753358229182,0.03,186.98,186.97,116.76564722]
[1753358229382,0.03,186.98,186.97,155.34564722]
[1753358233286,0.03,186.98,186.97,155.30564722]
[1753358235682,0.03,186.98,186.97,112.12745873]
[1753358235867,0.03,186.98,186.97,154.25132408]
[1753358236071,0.03,186.98,186.97,154.53564722]
[1753358238788,0.03,186.98,186.97,150.57745873]
[1753358238985,0.03,186.98,186.97,155.21564722]
[1753358241078,0.03,187.0,186.99,16.78468397]
[1753358241383,0.03,187.0,186.99,60.66198355]
[1753358241592,0.03,187.0,186.99,61.34198355]
[1753358243274,0.03,187.0,186.99,66.68986311]
[1753358246802,0.03,187.02,187.01,16.78468397]
[1753358247000,0.03,187.02,187.01,131.75468397]
[1753358247318,0.03,187.02,187.01,170.39900711]
[1753358247612,0.03,187.02,187.01,105.89684554]
[1753358247780,0.03,187.02,187.01,144.39900711]
[1753358248684,0.03,187.02,187.01,144.11468397]
[1753358248883,0.12,187.02,187.01,144.11468397]
[1753358249182,0.03,187.02,187.01,144.09468397]
[1753358249783,0.03,187.02,187.01,154.36450323]
[1753358249996,0.03,187.02,187.01,144.37900711]
[1753358250705,0.03,187.02,187.01,144.09468397]
[1753358251500,0.12,187.02,187.01,105.75468397]
[1753358251706,0.12,187.02,187.01,144.09468397]
[1753358252609,10.10521019,187.02,187.01,55.12468397]
[1753358253016,10.10521019,187.02,187.01,38.34]
[1753358253223,0.03,187.02,187.01,38.34]
[1753358253591,4.66818849,187.02,187.01,38.34]
[1753358253908,4.75818849,187.02,186.98,89.25432314]
[1753358254096,4.72818849,187.01,186.99,55.08468397]
[1753358254295,0.09,187.0,186.99,55.08468397]
[1753358255095,4.63818849,187.01,186.99,55.08468397]
[1753358255292,0.12,187.02,186.99,55.08468397]
[1753358255488,4.63818849,187.0,186.99,55.08468397]
[1753358255920,4.72818849,187.01,186.99,55.08468397]
[1753358256115,4.63818849,187.0,186.99,55.08468397]
[1753358256423,4.72818849,187.0,186.99,55.08468397]
[1753358256804,4.72818849,187.0,186.99,38.3]
[1753358257115,0.09,187.0,186.96,88.97]
[1753358257326,5.34730913,187.01,186.97,38.26]
[1753358257327,4.72818849,186.99,186.97,38.26]
[1753358257901,10.07614355,186.99,186.97,38.26]
[1753358259702,4.72818849,186.98,186.94,0.06]
[1753358259899,4.63818849,186.96,186.95,38.28]
[1753358260230,0.09,186.98,186.95,38.28]
[1753358260521,4.63818849,186.97,186.95,38.28]
[1753358260932,5.34795506,186.99,186.95,38.28]
[1753358261105,9.98614355,186.99,186.95,38.28]
[1753358261294,4.63818849,186.98,186.95,38.28]
[1753358261797,9.98641731,186.98,186.95,38.28]
[1753358262199,4.63818849,186.99,186.96,16.78468397]
[1753358262402,4.63818849,187.0,186.97,38.26]
[1753358263136,4.63818849,187.01,186.97,38.97]
[1753358263527,9.98559352,187.01,186.97,38.97]
[1753358266306,4.63818849,187.0,186.97,38.97]
[1753358266524,9.98582792,187.0,186.97,38.26]
[1753358266834,5.34763943,187.0,186.97,38.26]
[1753358267135,9.98582792,187.0,186.97,38.26]
[1753358267336,4.63818849,187.0,186.97,38.26]
[1753358267628,9.98557717,187.01,186.97,38.97]
[1753358268439,9.98557717,187.01,186.98,0.71]
[1753358268604,9.98557717,187.01,186.99,38.18]
[1753358270822,4.63818849,187.0,186.99,38.18]
[1753358271222,4.72818849,187.0,186.99,38.18]
[1753358271418,4.72818849,187.0,186.95,88.97]
[1753358271737,4.63818849,186.98,186.96,38.16]
[1753358271912,4.63818849,186.97,186.95,88.97]
[1753358272237,4.63818849,186.97,186.9,0.06]
[1753358272238,26.0,186.95,186.9,0.06]
[1753358272543,4.63818849,186.91,186.9,0.06]
[1753358273450,5.35001576,186.92,186.9,0.06]
[1753358273643,4.63818849,186.91,186.9,0.06]
[1753358275546,9.98835702,186.91,186.9,0.06]
[1753358277147,10.01835702,186.91,186.9,0.06]
[1753358277448,9.98835702,186.91,186.9,0.06]
[1753358278025,4.63818849,186.91,186.9,0.06]
[1753358281130,4.63818849,186.93,186.91,16.78468397]
[1753358281349,4.63818849,186.95,186.92,0.71]
[1753358281937,4.63818849,186.98,186.93,22.13287246]
[1753358282145,4.63818849,186.98,186.94,0.71]
[1753358282948,5.37759358,187.0,186.93,59.48287246]
[1753358283152,4.63818849,186.99,186.95,17.49468397]
[1753358283354,4.63818849,186.99,186.96,0.71]
[1753358283952,4.63818849,186.99,186.95,16.78468397]
[1753358284151,4.63818849,186.99,186.95,17.49468397]
[1753358284745,4.63818849,186.99,186.95,16.78468397]
[1753358284953,4.63818849,186.99,186.95,17.49468397]
[1753358288139,4.63818849,186.99,186.96,0.71]
[1753358288764,4.63818849,186.99,186.97,0.72]
[1753358288943,4.63818849,186.99,186.96,0.72]
[1753358289139,5.37759358,187.0,186.97,5.35818849]
[1753358289140,0.03,187.0,186.97,5.35818849]
[1753358289458,0.03,187.0,186.96,38.32432314]
[1753358289459,0.03,187.0,186.98,5.35818849]
[1753358289863,0.03,187.0,186.98,0.72]
[1753358292961,4.66818849,187.0,186.97,38.04]
[1753358293350,4.66818849,187.0,186.97,38.76]
[1753358293554,0.03,187.0,186.98,0.72]
[1753358296149,4.63818849,186.99,186.97,38.04]
[1753358296386,4.66818849,187.0,186.97,38.04]
[1753358296584,4.63818849,186.98,186.93,26.72]
[1753358296871,4.63818849,186.96,186.93,26.0]
[1753358297043,4.63818849,186.96,186.91,89.72]
[1753358297250,4.63818849,186.95,186.92,38.0]
[1753358297484,4.63818849,186.95,186.92,38.72]
[1753358299565,9.98721843,186.95,186.92,38.72]
[1753358299766,9.98721843,186.95,186.92,38.78]
[1753358300286,4.63818849,186.95,186.92,38.78]
[1753358300667,4.63818849,186.94,186.92,38.06]
[1753358300868,4.63818849,186.94,186.92,0.06]
[1753358301189,9.98728994,186.95,186.92,0.78]
[1753358301431,9.98728994,186.95,186.92,38.78]
[1753358301602,4.63818849,186.93,186.92,0.06]
[1753358302469,9.98778459,186.93,186.92,0.06]
[1753358303064,5.3495961,186.93,186.92,0.06]
[1753358303381,9.98778459,186.93,186.92,0.06]
[1753358309204,10.01778459,186.93,186.92,0.06]
[1753358310584,14.65597308,186.93,186.92,0.06]
[1753358311275,9.98778459,186.93,186.92,0.06]
[1753358311494,0.03,186.98,186.92,0.78]
[1753358311692,4.63818849,186.96,186.92,0.78]
[1753358312188,4.63818849,186.93,186.92,0.06]
[1753358314699,9.98778459,186.93,186.92,0.06]
[1753358317595,0.03,186.97,186.92,0.06]
[1753358317800,4.63818849,186.93,186.92,0.06]
[1753358317996,0.03,186.96,186.92,0.06]
[1753358318199,4.63818849,186.93,186.92,0.06]
[1753358319107,9.98778459,186.93,186.92,0.06]
[1753358324787,10.01778459,186.93,186.92,0.06]
[1753358325009,26.0,186.91,186.9,0.06]
[1753358325213,30.63818849,186.91,186.9,0.06]
[1753358325515,30.66818849,186.91,186.9,0.06]
[1753358326081,36.01835702,186.91,186.9,0.06]
[1753358330104,74.01835702,186.91,186.9,0.06]
[1753358330422,73.98835702,186.91,186.9,0.06]
[1753358331698,47.98835702,186.91,186.9,0.06]
[1753358331903,4.63818849,186.91,186.9,0.75]
[1753358332399,4.63818849,186.91,186.9,0.06]
[1753358332720,4.63818849,186.91,186.9,0.75]
[1753358335718,9.98835702,186.91,186.9,0.75]
[1753358335915,9.98835702,186.91,186.9,0.06]
[1753358337744,10.01835702,186.91,186.9,0.06]
[1753358340023,9.98835702,186.91,186.9,0.06]
[1753358340208,10.01835702,186.91,186.9,0.06]
[1753358340825,4.63818849,186.87,186.86,0.06]
[1753358341130,42.63818849,186.87,186.86,0.06]
[1753358341334,42.66818849,186.87,186.86,0.06]
[1753358341502,42.66818849,186.87,186.84,0.06]
[1753358341503,9.27637698,186.85,186.84,0.06]
[1753358341704,14.62826352,186.85,186.84,0.06]
[1753358341939,14.65826352,186.85,186.84,0.06]
[1753358343312,14.62826352,186.85,186.84,0.06]
[1753358343517,14.65826352,186.85,186.84,0.06]
[1753358343909,14.65826352,186.85,186.82,0.06]
[1753358344111,4.63818849,186.83,186.82,0.06]
[1753358344524,4.66818849,186.83,186.82,0.06]
[1753358344922,42.68818849,186.83,186.82,0.06]
[1753358345309,48.04064794,186.83,186.82,0.06]
[1753358345633,9.99064794,186.83,186.82,0.06]
[1753358345836,48.04064794,186.83,186.82,0.06]
[1753358346127,48.04064794,186.83,186.82,1e-08]
[1753358349232,48.04064794,186.83,186.8,0.06]
[1753358349233,26.0,186.81,186.8,0.06]
[1753358349430,74.01122098,186.81,186.8,0.06]
[1753358349733,74.04122098,186.81,186.8,0.06]
[1753358352221,74.04122098,186.81,186.78,0.06]
[1753358352426,4.63818849,186.79,186.78,0.06]
[1753358352626,42.65818849,186.79,186.78,0.06]
[1753358352832,42.65818849,186.79,186.77,0.06]
[1753358352833,42.68818849,186.79,186.77,0.06]
[1753358353011,4.66818849,186.78,186.77,0.06]
[1753358353216,4.66818849,186.78,186.76,0.06]
[1753358353417,42.65818849,186.77,186.76,0.06]
[1753358354017,48.01236742,186.77,186.76,0.06]
[1753358358012,48.01236742,186.77,186.76,0.71]
[1753358358219,48.01236742,186.77,186.76,0.06]
[1753358359617,52.68055591,186.77,186.76,1e-08]
[1753358360538,52.65055591,186.77,186.76,1e-08]
[1753358362943,14.63055591,186.77,186.76,1e-08]
[1753358363245,52.65055591,186.77,186.76,1e-08]
[1753358363755,48.01236742,186.77,186.76,1e-08]
[1753358365434,52.68055591,186.77,186.76,1e-08]
[1753358366024,26.0,186.75,186.74,0.06]
[1753358366230,73.29637698,186.75,186.74,1e-08]
[1753358367445,35.27637698,186.75,186.74,1e-08]
[1753358367752,73.29637698,186.75,186.74,1e-08]
[1753358368333,78.65112932,186.75,186.74,1e-08]
[1753358370352,40.63112932,186.75,186.74,1e-08]
[1753358370555,78.65112932,186.75,186.74,1e-08]
[1753358372857,31.35475234,186.75,186.74,0.65000001]
[1753358373059,43.37475234,186.75,186.74,0.65000001]
[1753358373657,48.01294083,186.75,186.74,0.65000001]
[1753358381953,48.01294083,186.75,186.74,1e-08]
[1753358382555,48.01294083,186.75,186.74,0.67000001]
[1753358384153,48.01294083,186.75,186.74,1e-08]
[1753358385162,48.01294083,186.75,186.74,0.67000001]
[1753358386475,52.68112932,186.75,186.74,1e-08]
[1753358386970,52.65112932,186.75,186.74,1e-08]
[1753358388968,48.01294083,186.75,186.74,1e-08]
[1753358390472,47.99294083,186.75,186.74,0.67000001]
[1753358391955,48.02294083,186.75,186.74,0.67000001]
[1753358394172,48.02294083,186.75,186.74,1e-08]
[1753358394373,48.02294083,186.75,186.74,0.67000001]
[1753358396061,48.02294083,186.75,186.74,1e-08]
[1753358396990,52.66112932,186.75,186.74,1e-08]
[1753358397483,56.27358235,186.75,186.74,1e-08]
[1753358397998,26.0,186.72,186.71,0.2]
[1753358398289,68.63818849,186.72,186.67,0.67]
[1753358398466,30.63818849,186.69,186.67,0.67]
[1753358398778,68.63818849,186.69,186.67,0.67]
[1753358399003,73.99466178,186.69,186.67,0.67]
[1753358399178,73.99466178,186.69,186.66,0.67]
[1753358399769,73.99466178,186.69,186.68,1e-08]
[1753358404176,73.99466178,186.69,186.68,0.67000001]
[1753358404487,92.05403351,186.69,186.61,0.48432314]
[1753358404670,26.0,186.66,186.63,0.67]
[1753358404865,5.35647329,186.69,186.63,0.67]
[1753358405093,26.0,186.7,186.65,0.28432314]
[1753358405297,4.63818849,186.69,186.65,0.28432314]
[1753358405489,4.63818849,186.69,186.66,0.67]
[1753358405689,38.0,186.71,186.66,0.67]
[1753358405690,4.63818849,186.68,186.66,0.67]
[1753358405870,47.27637698,186.67,186.63,0.67]
[1753358406070,47.27637698,186.67,186.61,0.2]
[1753358406071,4.63818849,186.64,186.61,0.2]
[1753358406297,4.63818849,186.62,186.61,0.2]
[1753358406477,4.63818849,186.63,186.62,0.67]
[1753358406680,4.63818849,186.64,186.62,0.67]
[1753358407078,9.9958645,186.65,186.62,0.67]
[1753358407276,4.63818849,186.63,186.62,0.67]
[1753358408298,5.35767601,186.65,186.62,0.67]
[1753358408596,4.63818849,186.63,186.62,0.67]
[1753358410573,5.35810797,186.64,186.62,0.67]
[1753358410786,4.63818849,186.63,186.62,0.67]
[1753358410988,5.35762121,186.65,186.62,0.67]
[1753358411184,4.63818849,186.63,186.62,0.67]
[1753358411699,5.35762121,186.65,186.62,0.67]
[1753358411905,5.35737196,186.66,186.62,0.67]
[1753358412113,9.99556045,186.66,186.62,0.67]
[1753358412407,4.63818849,186.65,186.62,0.67]
[1753358413295,5.35711103,186.67,186.62,0.67]
[1753358413497,4.63818849,186.7,186.65,21.42287246]
[1753358413799,4.66818849,186.69,186.66,0.94432314]
[1753358414054,0.03,186.69,186.67,0.66]
[1753358416001,4.66818849,186.69,186.67,0.66]
[1753358416196,0.03,186.69,186.67,0.66]
[1753358416579,0.03,186.69,186.68,0.28432314]
[1753358417101,9.99403674,186.72,186.68,7.57442314]
[1753358417295,9.99403674,186.72,186.69,0.66]
[1753358417496,4.63818849,186.7,186.69,0.66]
[1753358417685,4.63818849,186.71,186.69,0.66]
[1753358418317,9.99403674,186.72,186.69,0.66]
[1753358419927,4.63818849,186.71,186.69,0.66]
[1753358420211,4.63818849,186.7,186.69,0.66]
[1753358420992,4.63818849,186.7,186.64,6.0772]
[1753358421197,18.74487995,186.72,186.62,6.22648849]
[1753358421198,26.0,186.69,186.65,0.66]
[1753358421542,4.63818849,186.66,186.65,0.66]
[1753358422116,9.99552268,186.66,186.65,0.66]
[1753358422714,9.99552268,186.66,186.63,0.14216157]
[1753358422715,9.99552268,186.66,186.63,0.94432314]
[1753358422900,4.63818849,186.65,186.64,0.66]
[1753358423101,9.99552268,186.66,186.65,0.66]
[1753358423501,9.99552268,186.66,186.63,0.66]
[1753358423708,4.63818849,186.64,186.63,0.66]
[1753358424021,9.99609676,186.64,186.63,0.66]
[1753358425416,9.99609676,186.64,186.62,0.06]
[1753358425601,9.99609676,186.64,186.62,0.72]
[1753358426004,9.99609676,186.64,186.62,0.06]
[1753358426203,9.99609676,186.64,186.63,0.66]
[1753358427918,5.35763382,186.65,186.63,0.66]
[1753358428100,9.99561476,186.66,186.63,0.66]
[1753358428498,5.35742627,186.66,186.63,0.94432314]
[1753358428702,26.0,186.69,186.63,0.94432314]
[1753358428703,5.35647329,186.69,186.64,0.94432314]
[1753358428933,4.63818849,186.68,186.65,0.66]
[1753358429503,4.63818849,186.66,186.63,0.66]
[1753358429718,4.63818849,186.66,186.64,0.66]
[1753358429922,4.63818849,186.66,186.62,0.34432314]
[1753358430122,4.63818849,186.66,186.65,0.66]
[1753358430827,9.99552268,186.66,186.65,0.66]
[1753358431012,5.35676023,186.68,186.65,5.29818849]
[1753358431204,5.35627607,186.7,186.66,5.58251163]
[1753358431411,4.63818849,186.73,186.69,0.28432314]
[1753358431611,4.63818849,186.73,186.7,0.66]
[1753358432829,9.99351436,186.73,186.7,0.66]
[1753358433238,5.35532587,186.73,186.66,18.42638397]
[1753358433415,4.63818849,186.68,186.67,0.28432314]
[1753358433615,4.63818849,186.69,186.67,0.94432314]
[1753358434034,4.63818849,186.69,186.68,0.66]
[1753358434413,4.63818849,186.69,186.65,0.66]
[1753358434632,4.63818849,186.66,186.65,0.66]
[1753358434933,9.99552268,186.66,186.65,0.66]
[1753358435636,5.35647329,186.69,186.65,0.66]
[1753358435823,4.63818849,186.67,186.65,0.66]
[1753358436433,4.63818849,186.67,186.66,0.66]
[1753358436641,5.35647329,186.69,186.66,0.66]
[1753358436834,4.63818849,186.67,186.66,0.66]
[1753358437140,9.99523568,186.67,186.66,0.66]
[1753358441244,4.63818849,186.71,186.67,0.28432314]
[1753358441426,5.35618639,186.7,186.68,0.66]
[1753358441740,5.35618639,186.7,186.69,0.66]
[1753358444428,18.7738353,186.73,186.69,0.66]
[1753358444641,4.63818849,186.71,186.69,0.66]
[1753358444832,18.7738353,186.73,186.69,0.66]
[1753358445137,4.63818849,186.7,186.67,0.66]
[1753358445325,18.8338353,186.73,186.67,0.66]
[1753358445326,4.63818849,186.69,186.67,0.66]
[1753358445530,4.63818849,186.69,186.68,0.66]
[1753358445929,4.69818849,186.69,186.63,0.66]
[1753358446140,4.63818849,186.64,186.63,0.66]
[1753358446513,9.99609676,186.64,186.63,0.66]
[1753358450017,5.35704719,186.67,186.63,0.66]
[1753358450222,4.63818849,186.65,186.63,0.66]
[1753358450422,3.70969354,186.65,186.63,0.66]
[1753358450734,3.70969354,186.65,186.62,0.34432314]
[1753358450938,3.70969354,186.65,186.64,0.66]
[1753358451144,9.06731475,186.65,186.64,0.66]
[1753358451446,4.63818849,186.67,186.64,0.66]
[1753358451737,4.63818849,186.68,186.64,0.66]
[1753358453142,9.99520294,186.68,186.64,0.66]
[1753358454329,9.99470176,186.69,186.65,0.28432314]
[1753358454529,9.99470176,186.69,186.66,0.66]
[1753358456730,5.35651327,186.69,186.67,0.66]
[1753358457246,4.63818849,186.69,186.65,0.66]
[1753358457442,4.63818849,186.69,186.65,16.78468397]
[1753358457621,4.63818849,186.69,186.66,0.66]
[1753358458327,4.63818849,186.69,186.66,0.72]
[1753358458649,9.99408801,186.71,186.67,0.94432314]
[1753358458851,5.35589952,186.71,186.68,0.94432314]
[1753358459089,5.35589952,186.71,186.69,0.66]
[1753358459345,5.35589952,186.71,186.7,0.66]
[1753358460452,9.99408801,186.71,186.68,0.94432314]
[1753358460951,9.99408801,186.71,186.67,0.94432314]
[1753358461156,4.63818849,186.7,186.68,0.66]
[1753358461841,9.99458476,186.7,186.68,0.66]
[1753358462439,9.99458476,186.7,186.67,0.28432314]
[1753358462640,9.99458476,186.7,186.67,0.94432314]
[1753358463334,4.63818849,186.69,186.66,0.34432314]
[1753358463538,4.63818849,186.67,186.66,0.06]
[1753358463742,4.63818849,186.68,186.66,0.72]
[1753358465935,5.35704719,186.67,186.66,0.72]
[1753358466842,9.99499625,186.68,186.66,0.72]
[1753358467535,5.35680776,186.68,186.66,0.72]
[1753358467830,9.99474457,186.69,186.66,0.72]
[1753358468036,5.35655608,186.69,186.66,1.00432314]
[1753358468246,5.35655608,186.69,186.67,0.66]
[1753358468565,5.35621237,186.7,186.67,5.29818849]
[1753358468757,5.35621237,186.7,186.68,0.69]
[1753358469068,5.35621237,186.7,186.69,0.69]
[1753358469445,5.35621237,186.7,186.67,0.69]
[1753358469959,5.35621237,186.7,186.68,0.69]
[1753358471648,9.99440086,186.7,186.66,0.34432314]
[1753358472570,9.99440086,186.7,186.66,1.03432314]
[1753358472767,5.35621237,186.7,186.66,0.06]
[1753358472944,4.63818849,186.68,186.66,0.06]
[1753358473869,5.35704719,186.67,186.66,0.06]
[1753358477473,9.99503926,186.68,186.66,0.75]
[1753358478474,4.63818849,186.69,186.66,0.06]
[1753358478673,9.99463678,186.7,186.67,0.69]
[1753358478851,9.99463678,186.7,186.68,0.69]
[1753358481071,9.99463678,186.7,186.66,38.26432314]
[1753358481372,9.99463678,186.7,186.67,0.69]
[1753358482068,0.03,186.68,186.67,0.69]
[1753358482649,0.03,186.68,186.67,6.04704719]
[1753358482880,0.03,186.73,186.69,0.28432314]
[1753358483176,0.03,186.73,186.72,0.28432314]
[1753358483362,5.38532587,186.73,186.72,0.28432314]
[1753358483565,5.38532587,186.73,186.71,0.97432314]
[1753358483764,0.03,186.73,186.71,0.97432314]
[1753358484159,5.38533887,186.73,186.71,0.97432314]
[1753358484371,5.38533887,186.73,186.71,38.20432314]
[1753358484997,0.03,186.73,186.71,38.20432314]
[1753358485192,0.03,186.73,186.72,0.69]
[1753358486881,0.03,186.73,186.71,38.20432314]
[1753358487388,4.66818849,186.73,186.68,6.20008849]
[1753358487563,4.66818849,186.73,186.69,37.92]
[1753358487564,4.63818849,186.71,186.69,37.92]
[1753358488378,9.99428247,186.71,186.69,37.92]
[1753358489101,9.99428247,186.71,186.69,38.61]
[1753358489276,5.35609398,186.71,186.69,38.61]
[1753358489470,4.66818849,186.73,186.7,0.97432314]
[1753358489670,0.03,186.73,186.71,0.69]
[1753358489880,0.03,186.73,186.72,0.69]
[1753358494283,0.03,186.73,186.7,0.97432314]
[1753358494493,4.66818849,186.73,186.7,0.97432314]
[1753358495295,0.03,186.73,186.7,0.97432314]
[1753358495684,0.03,186.73,186.7,0.28432314]
[1753358495892,0.03,186.73,186.71,0.69]
[1753358496184,0.03,186.73,186.72,0.69]
[1753358496623,0.03,186.73,186.72,5.61251163]
[1753358496792,0.03,186.73,186.72,48.86812431]
[1753358497302,0.03,186.74,186.73,17.06900711]
[1753358497471,0.03,186.75,186.74,21.7071956]
[1753358497672,0.03,186.77,186.75,0.28432314]
[1753358497910,0.03,186.77,186.76,59.32287246]
[1753358498082,0.03,186.77,186.76,59.6071956]
[1753358498271,0.03,186.77,186.76,60.2971956]
[1753358498471,0.03,186.77,186.76,65.65166122]
[1753358499209,0.03,186.77,186.76,60.2971956]
[1753358501399,0.03,186.77,186.76,65.65166122]
[1753358501597,0.03,186.77,186.76,66.18710778]
[1753358503781,0.03,186.77,186.76,155.18710778]
[1753358503984,0.03,186.77,186.76,154.65166122]
[1753358504388,0.01230855,186.81,186.77,0.28432314]
[1753358504591,0.01230855,186.81,186.8,21.7071956]
[1753358504791,0.01230855,186.81,186.8,59.5871956]
[1753358505192,0.01230855,186.81,186.8,60.2871956]
[1753358507504,0.01230855,186.81,186.8,65.64051465]
[1753358507709,0.01230855,186.81,186.8,71.92431465]
[1753358508310,0.01230855,186.81,186.8,97.92431465]
[1753358509195,0.01230855,186.81,186.8,98.45964655]
[1753358510103,0.01230855,186.81,186.8,72.45964655]
[1753358510309,0.03,186.85,186.8,92.05713268]
[1753358510519,0.03,186.85,186.84,52.34538409]
[1753358510683,0.03,186.85,186.84,90.22538409]
[1753358510887,0.1,186.88,186.85,0.28432314]
[1753358511188,0.1,186.89,186.88,0.28432314]
[1753358511391,0.1,186.89,186.88,60.80229833]
[1753358511595,0.1,186.89,186.88,28.9352956]
[1753358511792,0.1,186.89,186.88,66.7952956]
[1753358512330,0.1,186.89,186.88,72.14632299]
[1753358512615,0.03,186.9,186.89,17.06900711]
[1753358512819,0.03,186.9,186.89,22.9422697]
[1753358514286,0.03,186.9,186.89,28.29301077]
[1753358516000,0.03,186.9,186.89,117.29301077]
[1753358516199,0.03,186.9,186.89,116.75793667]
[1753358516701,0.03,186.9,186.89,106.48468397]
[1753358516904,0.03,186.9,186.89,144.34468397]
[1753358517103,0.03,186.9,186.89,149.12503403]
[1753358517482,0.03,186.9,186.89,149.2671956]
[1753358518013,0.03,186.9,186.86,0.7]
[1753358518226,5.04818849,186.89,186.87,37.84]
[1753358518513,4.66818849,186.9,186.88,37.84]
[1753358518683,0.03,186.9,186.89,17.48468397]
[1753358519005,0.03,186.9,186.89,22.4071956]
[1753358519578,0.03,186.9,186.89,111.4071956]
[1753358520380,0.03,186.9,186.89,110.7071956]
[1753358520577,0.03,186.9,186.89,106.06900711]
[1753358520808,0.03,186.9,186.81,19.4444616]
[1753358520809,5.07818849,186.9,186.85,16.78468397]
[1753358520998,4.63818849,186.86,186.8,5.33818849]
[1753358521182,4.63818849,186.85,186.82,17.06900711]